bitfinex/quotes_ETHUSD_20250326
["timestamp","ask_amount","ask_price","bid_price","bid_amount"]
[1743019011425,6.06,2006.0,2005.8,4.98545]
[1743019011787,0.10648109,2005.9,2005.8,5.53545]
[1743019012078,0.10648109,2005.9,2005.8,20.03545]
[1743019013126,0.10648109,2005.9,2005.8,15.05]
[1743019013427,0.22298109,2005.9,2005.8,15.05]
[1743019013911,0.22298109,2005.9,2005.8,0.55]
[1743019014213,0.22298109,2005.9,2005.7,0.55]
[1743019014607,5.20829109,2005.9,2005.6,0.98488746]
[1743019014807,16.03145,2005.8,2005.4,4.98639]
[1743019015127,16.03145,2005.8,2005.5,0.55]
[1743019015128,11.04569,2005.8,2005.5,0.55]
[1743019015297,6.16648109,2005.7,2005.4,4.98639]
[1743019015503,6.16648109,2005.7,2005.5,0.55]
[1743019016432,6.16648109,2005.7,2005.5,5.53604]
[1743019016895,6.16648109,2005.7,2005.4,5.53646]
[1743019017095,6.16648109,2005.7,2005.4,10.52279]
[1743019018337,6.16648109,2005.7,2005.6,5.53603]
[1743019018338,0.10648109,2005.7,2005.6,5.53603]
[1743019018497,6.06,2006.0,2005.7,5.53554]
[1743019018823,0.10648109,2005.9,2005.7,10.52117]
[1743019019027,0.10648109,2005.9,2005.8,4.98554]
[1743019019226,0.10648109,2005.9,2005.7,5.53554]
[1743019019810,0.10648109,2005.9,2005.8,4.98554]
[1743019020533,0.10648109,2005.9,2005.8,20.03554]
[1743019022225,6.16648109,2005.9,2005.8,20.03554]
[1743019023137,6.16648109,2005.9,2005.8,14.5]
[1743019023138,6.28298109,2005.9,2005.8,14.5]
[1743019023322,6.9546292,2005.9,2005.6,4.98588]
[1743019023532,11.9400292,2005.9,2005.6,4.98588]
[1743019024357,6.9546292,2005.9,2005.6,4.98588]
[1743019024536,6.9546292,2005.9,2005.7,4.98574]
[1743019026164,6.9546292,2005.9,2005.6,9.97177]
[1743019026350,6.9546292,2005.9,2005.7,4.98576]
[1743019026963,6.9546292,2005.9,2005.6,9.97178]
[1743019027125,6.9546292,2005.9,2005.7,4.98573]
[1743019028249,6.06,2005.8,2005.6,4.98588]
[1743019028443,0.10785375,2005.7,2005.6,4.98588]
[1743019028763,0.10785375,2005.7,2005.6,5.53603]
[1743019029218,0.10785375,2005.7,2005.6,0.55]
[1743019029417,1.80054094,2005.7,2005.6,0.55]
[1743019030224,0.10785375,2005.7,2005.6,0.55]
[1743019030524,0.10785375,2005.7,2005.6,5.53603]
[1743019034067,6.16785375,2005.7,2005.6,5.53603]
[1743019035940,6.16785375,2005.7,2005.6,9.70725501]
[1743019036344,0.55,2006.1,2006.0,0.8032]
[1743019036545,0.55,2006.1,2006.0,13.83349898]
[1743019036753,0.55,2006.1,2006.0,13.78365801]
[1743019037484,6.06,2006.6,2006.5,5.5338]
[1743019037769,6.06,2006.8,2006.6,10.51694]
[1743019037934,6.06,2006.8,2006.6,5.5334]
[1743019038133,6.06,2006.8,2006.6,10.51681]
[1743019038334,6.06,2006.8,2006.6,4.98345]
[1743019039288,6.06,2006.8,2006.6,5.97406808]
[1743019041970,6.06,2006.8,2006.6,4.98345]
[1743019042866,6.06,2006.8,2006.5,5.53374]
[1743019043207,4.98333,2006.7,2006.4,0.55]
[1743019043580,15.87088251,2006.8,2006.4,5.53402]
[1743019043799,12.5028575,2006.8,2006.4,5.53402]
[1743019044000,12.5028575,2006.8,2006.6,0.55]
[1743019044001,6.06,2006.8,2006.6,0.55]
[1743019044205,6.06,2006.8,2006.6,5.5334]
[1743019046795,0.1865,2006.9,2006.8,4.98305]
[1743019046796,6.13,2006.9,2006.8,4.98305]
[1743019046998,6.13,2006.9,2006.8,5.53305]
[1743019047198,6.13,2006.9,2006.8,20.03305]
[1743019047391,6.13,2006.9,2006.8,23.4522195]
[1743019048215,0.07,2006.9,2006.8,24.2762195]
[1743019048398,0.07,2006.9,2006.8,27.2762195]
[1743019049307,1e-05,2006.9,2006.8,27.2762195]
[1743019050507,6.06,2007.4,2007.3,9.68523501]
[1743019050712,6.06,2007.8,2007.7,6.31622]
[1743019051393,6.06,2007.8,2007.7,0.55]
[1743019051593,6.16114093,2007.8,2007.7,0.55]
[1743019051813,6.16114093,2007.8,2007.7,5.53082]
[1743019051980,6.16114093,2007.8,2007.7,0.55]
[1743019052822,6.16114093,2007.8,2007.7,5.53082]
[1743019053006,6.16114093,2007.8,2007.7,8.89884501]
[1743019053388,6.06,2007.8,2007.7,8.89884501]
[1743019053834,6.17153102,2007.8,2007.7,10.90027894]
[1743019054126,6.06,2007.8,2007.7,26.16607894]
[1743019055839,6.06,2008.4,2008.2,4.97937]
[1743019056036,6.06,2008.4,2008.2,0.55]
[1743019056192,0.10315156,2008.3,2008.2,5.52956]
[1743019056394,0.10315156,2008.3,2008.2,20.02956]
[1743019056607,0.10315156,2008.3,2008.2,15.05]
[1743019057036,0.71946672,2008.3,2007.9,5.53025]
[1743019057232,0.71946672,2008.3,2008.0,5.53005]
[1743019057532,0.83596672,2008.3,2007.7,4.98077]
[1743019057707,6.06,2008.2,2007.7,12.96142]
[1743019057906,0.68959667,2008.1,2007.8,0.55]
[1743019058232,0.10315156,2008.0,2007.7,12.96128]
[1743019058435,0.10315156,2008.0,2007.9,8.89834501]
[1743019058835,6.06,2008.2,2008.1,0.55]
[1743019059009,6.06,2008.2,2008.1,5.52983]
[1743019059525,6.06,2008.2,2008.1,6.33363]
[1743019059921,6.06,2008.2,2008.1,0.55]
[1743019060136,7.16391,2008.2,2008.1,0.55]
[1743019060336,6.06,2008.2,2008.1,5.52983]
[1743019061239,6.06,2008.2,2008.1,15.05]
[1743019061416,6.06,2008.2,2008.0,0.55]
[1743019061910,6.06,2008.2,2008.0,15.05]
[1743019063919,17.135084,2008.2,2007.9,0.55]
[1743019064326,4.97993,2008.1,2007.7,4.98081]
[1743019064538,7.175584,2008.2,2007.6,4.98107]
[1743019064539,0.1165,2007.9,2007.6,4.98107]
[1743019064744,0.73415,2007.9,2007.6,4.98094]
[1743019064912,0.09713189,2007.8,2007.6,4.98091]
[1743019065241,6.06,2007.8,2007.7,15.05]
[1743019067811,6.06,2007.8,2007.7,14.5]
[1743019068016,11.04057,2007.8,2007.7,14.5]
[1743019068340,12.654321,2007.8,2007.7,14.5]
[1743019070046,12.654321,2007.8,2007.7,0.55]
[1743019070047,6.06,2007.8,2007.7,0.55]
[1743019070262,6.06,2007.8,2007.7,5.53082]
[1743019070623,6.06,2007.8,2007.7,20.03082]
[1743019070950,6.15713189,2007.8,2007.7,20.03082]
[1743019071735,6.15713189,2007.8,2007.7,22.607808]
[1743019071940,6.15713189,2007.8,2007.7,23.420708]
[1743019071941,6.06,2007.8,2007.7,23.420708]
[1743019073352,6.15713189,2007.8,2007.7,23.420708]
[1743019074147,6.06,2007.8,2007.7,23.420708]
[1743019074647,6.06,2008.3,2008.2,5.52958]
[1743019074857,11.03893,2008.5,2008.2,0.55]
[1743019075145,6.06,2008.5,2008.2,5.52949]
[1743019075354,0.09683798,2008.4,2008.3,4.97916]
[1743019075564,0.09683798,2008.4,2008.3,19.47916]
[1743019077157,0.09683798,2008.4,2008.3,14.5]
[1743019077853,0.09683798,2008.4,2008.2,0.55]
[1743019078624,0.1165,2008.3,2008.1,14.5]
[1743019078821,5.0959,2008.3,2008.0,5.98606749]
[1743019079154,0.1165,2008.3,2008.0,4.97995]
[1743019079359,0.09742585,2008.2,2008.1,14.5]
[1743019079558,0.09742585,2008.2,2008.0,4.97995]
[1743019079962,0.09742585,2008.2,2008.0,24.45994]
[1743019080469,0.09742585,2008.2,2008.1,5.52983]
[1743019080765,6.1765,2008.5,2008.2,5.52934]
[1743019080955,4.97838,2008.7,2008.2,5.52934]
[1743019080956,6.06,2008.4,2008.3,5.52931]
[1743019082431,6.06,2008.4,2008.3,0.55]
[1743019082765,4.97983,2008.1,2007.7,4.98082]
[1743019082929,6.1765,2008.0,2007.7,4.98082]
[1743019083130,11.15658,2008.0,2007.7,4.98082]
[1743019083359,6.06,2007.9,2007.6,5.74614]
[1743019083533,11.04046,2007.9,2007.5,9.96241]
[1743019083739,6.06,2007.9,2007.6,4.98096]
[1743019084056,6.06,2007.9,2007.7,14.5]
[1743019085063,11.04034,2007.9,2007.7,14.5]
[1743019085759,6.06,2007.9,2007.7,14.5]
[1743019087664,11.04033,2007.9,2007.7,14.5]
[1743019088461,6.06,2007.9,2007.7,14.5]
[1743019088674,6.06,2007.9,2007.8,5.74887]
[1743019088976,6.06,2007.9,2007.8,9.65891881]
[1743019089163,6.06,2007.9,2007.8,12.65891881]
[1743019089874,11.0394,2008.3,2008.0,4.98005]
[1743019090932,11.0394,2008.3,2007.9,5.53024]
[1743019091268,11.0394,2008.3,2007.9,10.51041]
[1743019091757,11.0394,2008.3,2007.9,5.53017]
[1743019091959,4.97973,2008.2,2007.8,5.74881]
[1743019092140,10.07646,2008.1,2007.7,19.48079]
[1743019092341,5.09644,2008.1,2007.7,19.48079]
[1743019092936,5.09644,2008.1,2007.7,19.48066]
[1743019093142,5.09644,2008.1,2007.7,24.46134]
[1743019093732,5.09644,2008.1,2007.8,4.98056]
[1743019095161,5.09644,2008.1,2007.7,19.48066]
[1743019095465,5.09644,2008.1,2007.7,9.96134]
[1743019095662,6.06,2008.0,2007.7,9.96134]
[1743019095960,6.06,2008.0,2007.8,14.5]
[1743019096136,11.04019,2008.0,2007.8,14.5]
[1743019097965,14.40023881,2008.0,2007.8,14.5]
[1743019098268,8.34049881,2007.9,2007.6,0.55]
[1743019098645,8.34049881,2007.9,2007.7,14.5]
[1743019099368,4.98045,2007.9,2007.7,14.5]
[1743019100372,6.06,2007.8,2007.7,20.03082]
[1743019100967,6.06,2007.8,2007.7,20.85742]
[1743019101163,6.06,2007.8,2007.7,24.27538988]
[1743019102342,6.06,2007.8,2007.7,20.85742]
[1743019102537,6.06,2008.0,2007.9,5.80692]
[1743019103441,6.06,2008.0,2007.9,14.5]
[1743019104257,0.1865,2008.9,2008.0,1.3766]
[1743019104462,4.97867,2008.6,2008.2,4.97949]
[1743019104978,4.97867,2008.6,2008.2,4.97944]
[1743019105192,4.97867,2008.6,2008.2,9.95891]
[1743019105560,4.97867,2008.6,2008.3,4.97932]
[1743019105764,0.1165,2008.5,2008.2,4.97944]
[1743019106174,6.06,2008.4,2008.3,5.52923]
[1743019106401,6.06,2008.4,2008.3,9.70947104]
[1743019106577,6.06,2008.4,2008.3,9.65967881]
[1743019107459,6.06,2008.4,2008.3,6.29963]
[1743019113111,6.06,2008.4,2008.3,7.27424452]
[1743019113377,6.06,2008.4,2008.3,9.48056374]
[1743019118309,6.06,2008.4,2008.3,1.52461452]
[1743019118505,6.06,2008.4,2008.3,0.55]
[1743019119007,6.01,2008.4,2008.1,4.97982]
[1743019119387,6.01,2008.4,2008.2,0.55]
[1743019119802,6.01,2008.4,2008.1,4.97966]
[1743019120002,10.9891,2008.4,2008.2,0.55]
[1743019120204,16.29361269,2008.4,2007.9,7.9803]
[1743019120386,8.45621881,2008.2,2007.8,4.98057]
[1743019120587,6.01,2008.1,2007.9,0.55]
[1743019120823,6.01,2008.1,2007.9,4.98031]
[1743019121210,6.01,2008.1,2007.9,6.052988]
[1743019121788,6.01,2008.1,2007.9,11.033148]
[1743019121989,6.01,2008.1,2007.9,11.033078]
[1743019122219,6.01,2008.1,2007.9,11.033068]
[1743019122419,6.01,2008.1,2007.9,6.052838]
[1743019123232,6.01,2008.1,2007.9,11.032988]
[1743019123990,6.01,2008.1,2007.9,6.052828]
[1743019124142,6.01,2008.1,2007.8,10.51093]
[1743019124314,6.01,2008.1,2007.8,5.53044]
[1743019124504,6.01,2008.1,2007.8,10.5109]
[1743019124703,6.01,2008.1,2007.8,5.53044]
[1743019125105,6.01,2008.1,2007.8,10.5109]
[1743019125305,6.01,2008.1,2007.9,5.53018]
[1743019125841,6.01,2008.1,2008.0,0.97404249]
[1743019126005,6.01,2008.1,2008.0,1.52404249]
[1743019126402,6.01,2008.1,2008.0,0.97404249]
[1743019126605,6.01,2008.1,2008.0,1.52404249]
[1743019127250,6.01,2008.1,2008.0,6.50411249]
[1743019130043,6.01,2008.1,2008.0,0.97404249]
[1743019130253,7.45661488,2008.1,2007.6,4.98098]
[1743019130546,3.47654881,2007.8,2007.5,4.98127]
[1743019130707,6.01,2008.1,2007.6,0.775]
[1743019130903,6.01,2008.1,2007.9,4.98015]
[1743019131324,6.01,2008.1,2007.9,0.55]
[1743019131750,6.01,2008.1,2007.9,5.53029]
[1743019132248,6.01,2008.1,2007.9,6.581251]
[1743019132410,6.01,2008.1,2008.0,4.98007]
[1743019132835,6.01,2008.1,2008.0,5.76787]
[1743019133138,6.01,2008.1,2008.0,4.98007]
[1743019134734,6.01,2008.1,2007.9,6.581251]
[1743019134936,6.01,2008.1,2007.9,11.561431]
[1743019135349,6.01,2008.1,2008.0,4.98007]
[1743019135847,6.01,2008.1,2007.9,6.581241]
[1743019135848,6.01,2008.1,2007.9,5.53018]
[1743019136438,6.01,2008.1,2007.9,11.52565832]
[1743019136754,6.01,2008.1,2007.9,6.54547832]
[1743019137449,6.01,2008.1,2007.9,1.56529832]
[1743019137652,6.01,2008.1,2007.9,6.54550832]
[1743019137958,0.17896195,2008.0,2007.9,6.54550832]
[1743019138931,0.17896195,2008.0,2007.8,4.98053]
[1743019139132,0.17896195,2008.0,2007.8,9.96098]
[1743019139352,0.17896195,2008.0,2007.8,0.55]
[1743019139549,6.01,2007.9,2007.8,5.53055]
[1743019140258,6.01,2007.9,2007.8,6.76528107]
[1743019142464,4.98084,2007.7,2007.4,0.7856]
[1743019142633,9.37004881,2007.6,2007.3,4.98171]
[1743019142843,6.01,2007.6,2007.3,4.98171]
[1743019143048,6.01,2007.6,2007.2,1.01055256]
[1743019143049,0.1165,2007.5,2007.2,1.01055256]
[1743019143286,3.36004881,2007.3,2006.9,4.98275]
[1743019143469,3.36004881,2007.0,2006.6,5.76902]
[1743019143649,6.01,2006.9,2006.8,4.98305]
[1743019143990,6.01,2006.9,2006.8,5.53305]
[1743019144508,6.01,2006.9,2006.7,5.98494144]
[1743019144675,6.01,2006.9,2006.6,5.560332]
[1743019144887,10.99282,2006.9,2006.6,1.58236538]
[1743019145085,10.99282,2006.9,2006.6,1.00546338]
[1743019145086,14.35322881,2006.8,2006.6,1.00546338]
[1743019145287,14.46972881,2006.8,2006.4,4.98403]
[1743019145597,4.98333,2006.7,2006.5,1.01554268]
[1743019145806,10.99365,2006.6,2006.2,4.98443]
[1743019146111,9.37004881,2006.5,2006.0,5.76452]
[1743019146257,8.46070881,2006.4,2006.0,4.98502]
[1743019146450,5.10066,2006.4,2006.0,5.96371542]
[1743019146651,6.01,2006.3,2006.0,5.96363542]
[1743019146849,14.35439881,2006.3,2006.0,0.97879542]
[1743019147063,14.35439881,2006.3,2005.9,4.98516]
[1743019147268,3.36004881,2006.0,2005.8,4.98541]
[1743019147557,6.01,2005.9,2005.8,4.98541]
[1743019147982,6.01,2005.9,2005.7,9.97132]
[1743019148157,9.37004881,2005.8,2005.5,5.99862713]
[1743019148585,9.37004881,2005.8,2005.6,0.55]
[1743019148856,3.36004881,2005.7,2005.5,1.01244713]
[1743019149114,6.01,2005.6,2005.5,1.01244713]
[1743019149280,9.37004881,2005.6,2005.3,4.98677]
[1743019149596,9.37004881,2005.6,2005.4,1.01893781]
[1743019149795,9.37004881,2005.6,2005.2,5.78182]
[1743019150155,3.36004881,2005.5,2005.1,4.98723]
[1743019150373,3.36004881,2005.5,2005.1,6.32248875]
[1743019150576,3.36004881,2005.5,2005.2,0.55]
[1743019150875,8.34633881,2005.5,2005.2,0.55]
[1743019151379,8.34685881,2005.3,2004.8,9.9758]
[1743019151633,10.99664,2005.4,2004.9,6.00829538]
[1743019151786,19.34333881,2005.4,2004.9,6.00829538]
[1743019151989,3.36004881,2005.3,2004.9,6.00829538]
[1743019152219,3.36004881,2005.1,2004.9,1.02063538]
[1743019152515,9.37004881,2005.0,2004.7,4.98805]
[1743019152686,6.01,2005.0,2004.6,4.9885]
[1743019153015,10.99766,2005.0,2004.6,1.076923]
[1743019153215,6.01,2004.9,2004.5,4.9886]
[1743019153514,6.18896195,2004.9,2004.5,9.97727]
[1743019153716,6.18896195,2004.9,2004.5,4.9886]
[1743019154017,6.18896195,2004.9,2004.6,5.53852]
[1743019154178,6.18896195,2004.9,2004.8,0.55]
[1743019154514,6.18896195,2004.9,2004.8,5.53802]
[1743019154683,6.18896195,2004.9,2004.8,0.55]
[1743019154885,6.18896195,2004.9,2004.8,5.53802]
[1743019155213,6.18896195,2004.9,2004.8,6.590627]
[1743019155581,6.18896195,2004.9,2004.8,1.602607]
[1743019155782,6.18896195,2004.9,2004.8,6.590627]
[1743019156406,0.17896195,2004.9,2004.8,7.42290634]
[1743019156617,0.17896195,2004.9,2004.8,10.42290044]
[1743019156905,0.17896195,2004.9,2004.8,10.373027]
[1743019157088,0.17896195,2004.9,2004.8,24.873027]
[1743019157284,1.95e-06,2004.9,2004.8,28.60630262]
[1743019157607,6.01,2005.4,2005.3,5.53678]
[1743019157779,6.01,2005.4,2005.3,10.42141672]
[1743019157981,6.01,2005.4,2005.3,10.371554]
[1743019158602,6.01,2005.4,2005.3,24.871554]
[1743019158912,6.01,2006.0,2005.7,4.98557]
[1743019159126,6.01,2006.0,2005.8,0.55]
[1743019159320,6.01,2006.0,2005.8,6.93983099]
[1743019159633,6.01,2006.0,2005.9,5.53529]
[1743019159814,6.01,2006.0,2005.9,0.55]
[1743019159994,6.01,2006.0,2005.6,9.97169]
[1743019160192,6.01,2006.0,2005.7,0.55]
[1743019160388,6.01,2006.0,2005.4,3.0]
[1743019160389,4.98539,2005.9,2005.4,7.98638]
[1743019160801,4.98557,2005.8,2005.4,4.98638]
[1743019161002,4.98557,2005.8,2005.5,0.55]
[1743019161232,4.98539,2005.9,2005.4,4.98638]
[1743019161419,14.72835562,2006.0,2005.6,0.55]
[1743019162220,4.98539,2005.9,2005.6,0.55]
[1743019162518,15.9803,2006.0,2005.6,0.55]
[1743019162717,4.98531,2005.9,2005.6,0.55]
[1743019162934,6.583699,2005.8,2005.4,4.98652]
[1743019163144,6.01,2005.8,2005.4,4.98652]
[1743019163636,6.01,2005.8,2005.4,0.55]
[1743019163637,4.98592,2005.7,2005.4,0.55]
[1743019163923,3.73327562,2005.5,2004.9,1.00691824]
[1743019164140,8.72005562,2005.3,2004.9,1.00691824]
[1743019164340,4.98717,2005.2,2004.9,1.00691824]
[1743019164539,4.98753,2005.0,2004.6,4.98838]
[1743019164841,6.01,2004.9,2004.7,4.98815]
[1743019165472,10.99818,2004.8,2004.2,0.7597]
[1743019165725,4.98864,2004.6,2004.1,5.05975]
[1743019166022,14.84797562,2004.8,2004.2,4.98945]
[1743019166023,6.01,2004.5,2004.2,4.98945]
[1743019166224,6.01,2004.5,2004.4,4.98902]
[1743019166522,6.01,2005.0,2004.8,4.98781]
[1743019166692,6.01,2005.0,2004.9,4.98777]
[1743019166894,6.01,2005.0,2004.8,4.98781]
[1743019167314,6.01,2005.0,2004.9,5.53777]
[1743019167517,6.01,2005.0,2004.9,9.34734958]
[1743019167820,6.01,2005.0,2004.9,23.79747]
[1743019168203,6.01,2005.0,2004.9,27.53074562]
[1743019168519,6.01,2005.0,2004.9,23.79747]
[1743019168711,6.01,2005.0,2004.9,27.2302031]
[1743019168908,6.01,2005.0,2004.9,30.96347872]
[1743019169413,6.01,2005.0,2004.9,27.60420034]
[1743019169712,6.01,2005.0,2004.9,27.2302031]
[1743019170723,6.01,2005.0,2004.9,8.4205031]
[1743019170887,6.01,2005.0,2004.9,8.9705031]
[1743019171290,6.01,2005.0,2004.6,0.8098]
[1743019171487,6.01,2005.0,2004.7,9.97634]
[1743019171686,6.01,2005.0,2004.8,4.988]
[1743019171921,6.01,2004.9,2004.8,5.538]
[1743019172226,6.01,2004.9,2004.8,4.988]
[1743019172523,6.01,2004.9,2004.8,5.538]
[1743019173225,6.01,2004.9,2004.8,0.55]
[1743019173425,12.097635,2004.9,2004.5,4.98866]
[1743019174112,0.1165,2004.8,2004.5,0.55]
[1743019174427,5.10453,2004.8,2004.5,0.55]
[1743019174639,10.902,2004.7,2004.2,1.00952142]
[1743019174792,5.10598,2004.3,2004.1,0.07]
[1743019175705,0.1165,2004.3,2004.1,0.07]
[1743019175894,4.892,2004.5,2004.1,5.05972]
[1743019176090,9.88078,2004.5,2004.2,0.55]
[1743019176306,9.88078,2004.5,2004.1,5.05972]
[1743019176697,9.97834,2004.4,2004.1,0.07]
[1743019176904,4.98929,2004.3,2004.1,0.07]
[1743019177114,4.98909,2004.4,2004.1,0.07]
[1743019177311,0.1165,2004.2,2004.1,0.07]
[1743019177516,11.11602,2004.2,2004.1,0.07]
[1743019177729,7.226235,2004.2,2004.1,0.07]
[1743019177931,12.215755,2004.2,2004.1,0.07]
[1743019178629,7.226235,2004.2,2004.1,0.07]
[1743019178999,12.215755,2004.2,2004.1,0.07]
[1743019180393,4.99039,2003.9,2003.5,4.99107]
[1743019180600,5.94,2003.8,2003.6,4.99101]
[1743019180802,5.94,2003.8,2003.6,4.99085]
[1743019181030,5.94,2003.8,2003.7,5.54076]
[1743019181229,5.94,2003.8,2003.7,4.99076]
[1743019181611,5.94,2003.8,2003.6,9.98178]
[1743019181813,5.94,2003.8,2003.6,4.99081]
[1743019182212,7.033002,2003.8,2003.6,4.99081]
[1743019182534,0.1165,2003.7,2003.4,4.99127]
[1743019182712,12.023522,2003.8,2003.4,4.99127]
[1743019182713,7.033002,2003.8,2003.6,4.99091]
[1743019182908,7.033002,2003.8,2003.4,0.55]
[1743019182909,7.033002,2003.8,2003.5,4.99126]
[1743019183119,0.7033002,2003.7,2003.3,4.99152]
[1743019183523,5.94,2003.6,2003.4,4.99151]
[1743019183703,5.94,2003.6,2003.3,4.99152]
[1743019184406,5.94,2003.6,2003.5,4.99126]
[1743019184607,5.94,2003.6,2003.5,6.36706]
[1743019187234,5.94,2003.6,2003.5,8.002068]
[1743019188036,5.94,2003.6,2003.5,5.54126]
[1743019188232,5.94,2003.6,2003.5,4.99266]
[1743019188538,5.94,2003.6,2003.5,0.0014]
[1743019189107,5.94,2003.6,2003.5,4.99266]
[1743019189810,5.94,2003.6,2003.5,0.0014]
[1743019190008,7.044703,2003.6,2003.5,0.0014]
[1743019190203,16.930713,2003.6,2003.5,0.0014]
[1743019190408,20.047213,2003.6,2003.5,0.0014]
[1743019190909,18.88548862,2003.6,2003.5,0.0014]
[1743019191104,23.78248862,2003.6,2003.5,0.0014]
[1743019191318,23.78248862,2003.6,2002.7,0.8258]
[1743019191319,0.1165,2003.1,2002.7,4.99305]
[1743019191531,5.9386,2003.0,2002.8,4.99294]
[1743019191707,5.9386,2003.0,2002.9,4.99276]
[1743019191907,5.9386,2003.0,2002.8,4.99294]
[1743019192107,5.9386,2003.0,2002.9,4.99276]
[1743019192308,5.9386,2003.0,2002.7,4.99312]
[1743019192535,6.75036087,2003.0,2002.7,4.99307]
[1743019192735,6.75036087,2003.0,2002.6,1.02146639]
[1743019192935,6.75036087,2003.0,2002.8,9.98577]
[1743019193135,6.75036087,2003.0,2002.8,4.99287]
[1743019193338,6.75036087,2003.0,2002.8,4.99286]
[1743019193636,6.75036087,2003.0,2002.6,1.02146639]
[1743019193830,6.75036087,2003.0,2002.8,4.99295]
[1743019194032,6.75036087,2003.0,2002.8,4.99285]
[1743019194219,6.75036087,2003.0,2002.9,5.54276]
[1743019194220,5.9386,2003.0,2002.9,5.54276]
[1743019194736,5.9386,2003.0,2002.9,4.99276]
[1743019194909,5.9386,2003.0,2002.9,5.54276]
[1743019195539,0.1165,2003.8,2003.7,4.99066]
[1743019195732,6.06,2003.8,2003.7,4.99066]
[1743019196322,0.1165,2004.1,2003.7,4.99066]
[1743019196323,6.06,2004.0,2003.9,4.99026]
[1743019196674,6.06,2004.0,2003.8,9.98085]
[1743019196814,6.06,2004.2,2003.9,4.99026]
[1743019197013,6.06,2004.2,2004.0,9.97976]
[1743019197215,6.06,2004.2,2004.0,4.98988]
[1743019198415,6.06,2004.2,2004.1,4.98977]
[1743019198619,6.06,2004.2,2004.0,4.98988]
[1743019199438,8.03989656,2004.2,2003.8,9.98067]
[1743019199641,8.03989656,2004.2,2003.8,4.99032]
[1743019199846,8.72329562,2004.0,2003.5,4.99124]
[1743019200141,8.72329562,2004.0,2003.4,0.8266]
[1743019200142,4.99069,2003.8,2003.4,0.8266]
[1743019200347,8.72443562,2003.6,2003.2,4.99201]
[1743019200529,6.06,2003.5,2003.2,4.99201]
[1743019200838,6.06,2003.5,2003.1,4.99206]
[1743019201017,11.05138,2003.5,2003.2,4.99199]
[1743019201217,6.06,2003.5,2003.2,4.99199]
[1743019202542,12.655636,2003.5,2003.1,4.9922]
[1743019202744,4.99151,2003.4,2003.1,4.99212]
[1743019202910,6.06,2003.5,2003.3,4.99167]
[1743019203115,6.06,2003.5,2003.2,5.54188]
[1743019203317,8.154603,2003.5,2003.2,4.99188]
[1743019203526,8.154603,2003.5,2003.2,4.99187]
[1743019203845,6.06,2003.5,2003.3,4.99163]
[1743019204043,11.05131,2003.5,2003.1,4.99224]
[1743019204216,11.05131,2003.5,2003.3,0.016]
[1743019204418,4.99151,2003.4,2003.3,0.016]
[1743019204946,8.84128562,2003.4,2003.3,0.016]
[1743019205145,7.59096956,2003.4,2003.3,0.016]
[1743019205316,6.06,2003.5,2003.3,5.00757]
[1743019205518,6.06,2003.5,2003.3,0.016]
[1743019205911,6.06,2003.5,2003.3,5.00773]
[1743019206115,6.06,2003.5,2003.4,4.99151]
[1743019206340,6.06,2003.5,2003.3,0.016]
[1743019206540,6.06,2003.5,2003.3,5.00757]
[1743019206761,6.06,2003.5,2003.3,0.016]
[1743019207140,7.67585,2003.5,2003.3,0.016]
[1743019207342,12.66712,2003.5,2003.3,0.016]
[1743019207512,7.67585,2003.5,2003.3,5.00762]
[1743019207724,6.06,2003.5,2003.3,5.00762]
[1743019208672,6.06,2003.5,2003.3,0.016]
[1743019211945,6.06,2003.5,2003.3,5.00775]
[1743019212248,6.06,2003.5,2003.4,4.99151]
[1743019212564,0.1165,2003.7,2003.4,0.55]
[1743019212565,6.06,2003.7,2003.4,0.55]
[1743019212865,6.06,2003.9,2003.7,4.99069]
[1743019213058,11.05003,2004.0,2003.6,4.99095]
[1743019213348,6.06,2004.0,2003.7,4.9907]
[1743019214660,6.06,2004.0,2003.5,5.54121]
[1743019214661,4.99029,2003.9,2003.5,5.54121]
[1743019214816,1.615638,2003.9,2003.6,4.9909]
[1743019215763,0.1165,2003.8,2003.5,4.99124]
[1743019215976,5.10703,2003.8,2003.5,4.99124]
[1743019216121,4.99079,2003.7,2003.3,5.55769]
[1743019216322,4.99135,2003.5,2003.3,0.016]
[1743019216532,8.84128562,2003.4,2003.3,0.016]
[1743019216734,14.90128562,2003.4,2003.3,0.016]
[1743019216935,13.01789907,2003.4,2003.3,0.016]
[1743019217530,6.06,2003.4,2003.3,0.016]
[1743019217733,6.06,2003.4,2003.3,5.00776]
[1743019218154,6.06,2003.4,2003.3,0.016]
[1743019219431,6.06,2003.4,2003.3,5.00776]
[1743019220021,6.06,2003.4,2003.3,8.55776]
[1743019220220,6.06,2003.4,2003.3,10.01440058]
[1743019220427,6.06,2003.4,2003.3,0.566]
[1743019221337,6.06,2003.4,2003.3,5.55776]
[1743019221777,6.06,2003.6,2003.4,4.9915]
[1743019222248,6.06,2003.6,2003.3,5.55776]
[1743019222447,6.06,2003.6,2003.3,5.55762]
[1743019222655,6.06,2003.6,2003.3,10.54924]
[1743019222962,6.06,2003.6,2003.3,5.55762]